[Event "*** Titled Tuesday Blitz"]
[Site "Chess.com"]
[Date "2020.12.01"]
[Round "6"]
[White "ArjunErigaisi2003"]
[Black "Bigfish1995"]
[Result "1-0"]
[WhiteElo "2934"]
[BlackElo "3057"]
[TimeControl "180+1"]
[EndTime "11:05:53 PST"]
[Termination "ArjunErigaisi2003 won by resignation"]

1. Nf3 {[%clk 0:03:00.9]} 1... g6 {[%clk 0:02:56.5]} 2. e4 {[%clk 0:02:57.8]}
2... Bg7 {[%clk 0:02:56.7]} 3. d4 {[%clk 0:02:57.9]} 3... d6 {[%clk 0:02:57]} 4.
Bc4 {[%clk 0:02:53.2]} 4... e6 {[%clk 0:02:51.2]} 5. Nc3 {[%clk 0:02:48.3]} 5...
a6 {[%clk 0:02:50.9]} 6. a4 {[%clk 0:02:45.7]} 6... Nd7 {[%clk 0:02:50.1]} 7.
Ne2 {[%clk 0:02:43.4]} 7... Ngf6 {[%clk 0:02:46.3]} 8. Ng3 {[%clk 0:02:43.4]}
8... Nxe4 {[%clk 0:02:43.5]} 9. Nxe4 {[%clk 0:02:44.1]} 9... d5 {[%clk
0:02:43.8]} 10. Bg5 {[%clk 0:02:25.1]} 10... f6 {[%clk 0:02:41.2]} 11. Nxf6+
{[%clk 0:02:25.5]} 11... Bxf6 {[%clk 0:02:40.9]} 12. Bxf6 {[%clk 0:02:25.9]}
12... Qxf6 {[%clk 0:02:41.5]} 13. Bb3 {[%clk 0:02:24.3]} 13... O-O {[%clk
0:02:38.3]} 14. O-O {[%clk 0:02:24]} 14... c5 {[%clk 0:02:29.3]} 15. c3 {[%clk
0:02:22.5]} 15... b6 {[%clk 0:02:22.4]} 16. Re1 {[%clk 0:02:12.2]} 16... Bb7
{[%clk 0:02:22.1]} 17. Qd2 {[%clk 0:02:11.3]} 17... Rae8 {[%clk 0:02:18.9]} 18.
Re3 {[%clk 0:02:05.7]} 18... c4 {[%clk 0:01:59.8]} 19. Bc2 {[%clk 0:01:56.9]}
19... e5 {[%clk 0:01:58.4]} 20. Nxe5 {[%clk 0:01:30.1]} 20... Nxe5 {[%clk
0:01:58.4]} 21. Rxe5 {[%clk 0:01:25.8]} 21... Rxe5 {[%clk 0:01:58]} 22. dxe5
{[%clk 0:01:26.7]} 22... Qxe5 {[%clk 0:01:58.5]} 23. Re1 {[%clk 0:01:26.8]}
23... Qf6 {[%clk 0:01:50.3]} 24. f3 {[%clk 0:01:13.4]} 24... Bc6 {[%clk
0:01:41]} 25. Re3 {[%clk 0:01:07.5]} 25... d4 {[%clk 0:01:33.3]} 26. Qxd4 {[%clk
0:01:02.4]} 26... Qxd4 {[%clk 0:01:24.8]} 27. cxd4 {[%clk 0:01:03.3]} 27... Kf7
{[%clk 0:01:20.9]} 28. b3 {[%clk 0:00:39.1]} 28... b5 {[%clk 0:00:44.2]} 29.
bxc4 {[%clk 0:00:35.5]} 29... bxc4 {[%clk 0:00:43.2]} 30. Re5 {[%clk 0:00:36]}
30... Rd8 {[%clk 0:00:29.6]} 31. Rc5 {[%clk 0:00:35.7]} 31... Bd5 {[%clk
0:00:30.1]} 32. Kf2 {[%clk 0:00:35.1]} 32... Ke6 {[%clk 0:00:23.4]} 33. Ke3
{[%clk 0:00:34.6]} 33... Kd6 {[%clk 0:00:18.3]} 34. Be4 {[%clk 0:00:31.5]} 34...
Be6 {[%clk 0:00:16.7]} 35. Rc6+ {[%clk 0:00:30.4]} 35... Ke7 {[%clk 0:00:16.9]}
36. Rxa6 {[%clk 0:00:25.1]} 36... Bd7 {[%clk 0:00:16.7]} 37. Kd2 {[%clk
0:00:20.5]} 37... Rb8 {[%clk 0:00:15]} 38. Kc3 {[%clk 0:00:20.4]} 38... Rb3+
{[%clk 0:00:15.2]} 39. Kxc4 {[%clk 0:00:20.6]} 39... Rb2 {[%clk 0:00:15.8]} 40.
Ra7 {[%clk 0:00:15.1]} 40... Kd6 {[%clk 0:00:15.7]} 41. Ra6+ {[%clk 0:00:15.6]}
41... Kc7 {[%clk 0:00:15.3]} 42. d5 {[%clk 0:00:12.8]} 42... Kb7 {[%clk
0:00:13]} 43. Rf6 {[%clk 0:00:11.2]} 43... Bxa4 {[%clk 0:00:12.7]} 44. d6+
{[%clk 0:00:10.3]} 44... Kb6 {[%clk 0:00:12.1]} 45. Rf7 {[%clk 0:00:06.5]} 45...
Bb5+ {[%clk 0:00:10.9]} 46. Kd4 {[%clk 0:00:05.6]} 46... Rd2+ {[%clk 0:00:10.6]}
47. Ke5 {[%clk 0:00:06.2]} 47... Rxg2 {[%clk 0:00:09.1]} 48. Rb7+ {[%clk
0:00:06.2]} 48... Kc5 {[%clk 0:00:09.6]} 49. Rxb5+ {[%clk 0:00:05.2]} 49... Kxb5
{[%clk 0:00:09.2]} 50. d7 {[%clk 0:00:06.1]} 50... Rd2 {[%clk 0:00:07]} 51. Bd5
{[%clk 0:00:06.6]} 1-0

[Event "*** Titled Tuesday Blitz"]
[Site "Chess.com"]
[Date "2020.12.01"]
[Round "6"]
[White "Beltraxtor"]
[Black "Fortitudine"]
[Result "1-0"]
[WhiteElo "2564"]
[BlackElo "2358"]
[TimeControl "180+1"]
[EndTime "11:05:53 PST"]
[Termination "Beltraxtor won on time"]

1. Nf3 {[%clk 0:03:00.9]} 1... c5 {[%clk 0:02:57.4]} 2. b3 {[%clk 0:02:58]} 2...
b6 {[%clk 0:02:54.6]} 3. g3 {[%clk 0:02:57.4]} 3... Bb7 {[%clk 0:02:55]} 4. Bg2
{[%clk 0:02:57.9]} 4... Nf6 {[%clk 0:02:54.7]} 5. Bb2 {[%clk 0:02:58.2]} 5... e6
{[%clk 0:02:52.8]} 6. O-O {[%clk 0:02:58]} 6... Be7 {[%clk 0:02:52.7]} 7. c4
{[%clk 0:02:55.5]} 7... O-O {[%clk 0:02:51.5]} 8. e3 {[%clk 0:02:55.7]} 8... d5
{[%clk 0:02:41.2]} 9. Nc3 {[%clk 0:02:54.9]} 9... dxc4 {[%clk 0:02:32.1]} 10.
bxc4 {[%clk 0:02:54.6]} 10... Nc6 {[%clk 0:02:27.7]} 11. Qe2 {[%clk 0:02:54.6]}
11... Na5 {[%clk 0:02:25.4]} 12. Rfd1 {[%clk 0:02:49.4]} 12... Rc8 {[%clk
0:02:24.3]} 13. Rac1 {[%clk 0:02:45.6]} 13... Ne4 {[%clk 0:02:10.9]} 14. Nxe4
{[%clk 0:01:50.7]} 14... Bxe4 {[%clk 0:02:11.8]} 15. d4 {[%clk 0:01:51.4]} 15...
Qe8 {[%clk 0:01:21.9]} 16. d5 {[%clk 0:01:45.2]} 16... exd5 {[%clk 0:01:16.8]}
17. cxd5 {[%clk 0:01:44.1]} 17... Bd6 {[%clk 0:01:14]} 18. Bh3 {[%clk
0:01:27.9]} 18... Rc7 {[%clk 0:01:12.7]} 19. Ng5 {[%clk 0:01:27.9]} 19... Bg6
{[%clk 0:01:10.1]} 20. Ba1 {[%clk 0:01:13]} 20... Re7 {[%clk 0:00:29.2]} 21. Qb2
{[%clk 0:00:40.9]} 21... Be5 {[%clk 0:00:28.6]} 22. Qd2 {[%clk 0:00:40.7]} 22...
Bxa1 {[%clk 0:00:28.6]} 23. d6 {[%clk 0:00:38.8]} 23... Re5 {[%clk 0:00:18]} 24.
d7 {[%clk 0:00:32.8]} 24... Qd8 {[%clk 0:00:18.1]} 25. Nf3 {[%clk 0:00:31.9]}
25... Re6 {[%clk 0:00:15]} 26. Bxe6 {[%clk 0:00:30]} 26... fxe6 {[%clk
0:00:15.9]} 27. Ng5 {[%clk 0:00:28.9]} 27... Qxg5 {[%clk 0:00:14]} 28. d8=Q
{[%clk 0:00:28.9]} 28... Rxd8 {[%clk 0:00:14.5]} 29. Qxd8+ {[%clk 0:00:29.8]}
29... Qxd8 {[%clk 0:00:15]} 30. Rxd8+ {[%clk 0:00:30.5]} 30... Kf7 {[%clk
0:00:15.6]} 31. Rxa1 {[%clk 0:00:31]} 31... Ke7 {[%clk 0:00:15.6]} 32. Rg8
{[%clk 0:00:29.4]} 32... Kf7 {[%clk 0:00:13.7]} 33. Ra8 {[%clk 0:00:26.8]} 33...
Nc6 {[%clk 0:00:13.8]} 34. Rc8 {[%clk 0:00:27.3]} 34... Ne5 {[%clk 0:00:13.8]}
35. Rc7+ {[%clk 0:00:27.7]} 35... Kf6 {[%clk 0:00:14]} 36. Rxa7 {[%clk
0:00:28.2]} 36... Be4 {[%clk 0:00:14.6]} 37. Kf1 {[%clk 0:00:26.4]} 37... b5
{[%clk 0:00:14.5]} 38. f4 {[%clk 0:00:24.8]} 38... Ng4 {[%clk 0:00:14.2]} 39.
Ke2 {[%clk 0:00:24.6]} 39... Bd5 {[%clk 0:00:14.1]} 40. h3 {[%clk 0:00:23.1]}
40... Nh6 {[%clk 0:00:13.6]} 41. g4 {[%clk 0:00:22.7]} 41... Kg6 {[%clk
0:00:12.3]} 42. a4 {[%clk 0:00:20.7]} 42... bxa4 {[%clk 0:00:11.8]} 43. R1xa4
{[%clk 0:00:20.9]} 43... c4 {[%clk 0:00:12.3]} 44. Rc7 {[%clk 0:00:20.7]} 44...
Nf7 {[%clk 0:00:12]} 45. Raa7 {[%clk 0:00:20.8]} 45... e5 {[%clk 0:00:10.6]} 46.
fxe5 {[%clk 0:00:19.4]} 46... Nxe5 {[%clk 0:00:11.1]} 47. Rxg7+ {[%clk 0:00:20]}
47... Kf6 {[%clk 0:00:11.6]} 48. Rxh7 {[%clk 0:00:20.3]} 48... Bf3+ {[%clk
0:00:11.3]} 49. Kf2 {[%clk 0:00:19.5]} 49... Be4 {[%clk 0:00:11.2]} 50. Rac7
{[%clk 0:00:17.6]} 50... Nd3+ {[%clk 0:00:09.6]} 51. Kg3 {[%clk 0:00:15.8]}
51... Bxh7 {[%clk 0:00:09.7]} 52. Rxh7 {[%clk 0:00:16.7]} 52... c3 {[%clk
0:00:04.1]} 53. Rc7 {[%clk 0:00:17.2]} 1-0

[Event "*** Titled Tuesday Blitz"]
[Site "Chess.com"]
[Date "2020.12.01"]
[Round "6"]
[White "AsaHoffmann"]
[Black "PawnEatingZombie"]
[Result "1/2-1/2"]
[WhiteElo "2378"]
[BlackElo "2181"]
[TimeControl "180+1"]
[EndTime "11:05:55 PST"]
[Termination "Game drawn by agreement"]

1. d4 {[%clk 0:01:38.5]} 1... d5 {[%clk 0:02:56.7]} 2. Bg5 {[%clk 0:01:37.3]}
2... f6 {[%clk 0:02:55.3]} 3. Bf4 {[%clk 0:01:36.2]} 3... Nc6 {[%clk 0:02:54]}
4. Nf3 {[%clk 0:01:35.1]} 4... Bg4 {[%clk 0:02:51.8]} 5. Nbd2 {[%clk 0:01:34.5]}
5... e6 {[%clk 0:02:42.7]} 6. Bg3 {[%clk 0:01:33.2]} 6... Bd6 {[%clk 0:02:42]}
7. e3 {[%clk 0:01:32.6]} 7... Nge7 {[%clk 0:02:41]} 8. c4 {[%clk 0:01:31.7]}
8... Nf5 {[%clk 0:02:27.1]} 9. Bd3 {[%clk 0:01:28.8]} 9... Nxg3 {[%clk
0:02:15.3]} 10. hxg3 {[%clk 0:01:27.9]} 10... f5 {[%clk 0:02:08.2]} 11. Qb3
{[%clk 0:01:23.8]} 11... Na5 {[%clk 0:01:42.6]} 12. Qa4+ {[%clk 0:01:22.1]}
12... c6 {[%clk 0:01:42.5]} 13. Ne5 {[%clk 0:01:13.6]} 13... Bxe5 {[%clk
0:01:40]} 14. dxe5 {[%clk 0:01:13]} 14... dxc4 {[%clk 0:01:13.3]} 15. Bxc4
{[%clk 0:01:04.7]} 15... Nxc4 {[%clk 0:01:08.7]} 16. Qxc4 {[%clk 0:01:03.7]}
16... f4 {[%clk 0:00:57.5]} 17. gxf4 {[%clk 0:00:57.8]} 17... Qd5 {[%clk
0:00:55.1]} 18. Qxd5 {[%clk 0:00:56.9]} 18... cxd5 {[%clk 0:00:55.4]} 19. f3
{[%clk 0:00:56.7]} 19... Bf5 {[%clk 0:00:55.1]} 20. g4 {[%clk 0:00:55.2]} 20...
Bd3 {[%clk 0:00:54.2]} 21. Kf2 {[%clk 0:00:54.7]} 21... Rc8 {[%clk 0:00:53]} 22.
Rac1 {[%clk 0:00:54.1]} 22... Kf7 {[%clk 0:00:52.1]} 23. Nb3 {[%clk 0:00:49.8]}
23... Bc4 {[%clk 0:00:44.8]} 24. Rc3 {[%clk 0:00:45.4]} 24... Bxb3 {[%clk
0:00:35.5]} 25. Rxb3 {[%clk 0:00:44.4]} 25... Rc2+ {[%clk 0:00:34.2]} 26. Kg3
{[%clk 0:00:43.7]} 26... b6 {[%clk 0:00:33.2]} 27. f5 {[%clk 0:00:42.5]} 27...
h6 {[%clk 0:00:30.4]} 28. Rc3 {[%clk 0:00:41.6]} 28... Rxc3 {[%clk 0:00:27.4]}
29. bxc3 {[%clk 0:00:41]} 29... Rc8 {[%clk 0:00:28.1]} 30. Rc1 {[%clk
0:00:39.8]} 30... Rc4 {[%clk 0:00:28]} 31. f4 {[%clk 0:00:36]} 31... Ra4 {[%clk
0:00:27.6]} 32. Rc2 {[%clk 0:00:35.6]} 32... Ra3 {[%clk 0:00:27.9]} 33. Kf3
{[%clk 0:00:34.1]} 33... b5 {[%clk 0:00:27.5]} 34. Ke2 {[%clk 0:00:34]} 34... a5
{[%clk 0:00:26.9]} 35. Kd3 {[%clk 0:00:33.8]} 35... Ke7 {[%clk 0:00:24.5]} 36.
Kd4 {[%clk 0:00:33.4]} 36... Kd7 {[%clk 0:00:16]} 37. fxe6+ {[%clk 0:00:31.5]}
37... Kxe6 {[%clk 0:00:15.2]} 38. f5+ {[%clk 0:00:31.3]} 38... Kd7 {[%clk
0:00:15.1]} 39. Kxd5 {[%clk 0:00:31.1]} 39... Ra4 {[%clk 0:00:14.4]} 40. e4
{[%clk 0:00:29.6]} 40... Ke7 {[%clk 0:00:11.9]} 41. e6 {[%clk 0:00:28.9]} 41...
Rc4 {[%clk 0:00:08.2]} 42. e5 {[%clk 0:00:28]} 42... Rxg4 {[%clk 0:00:06.6]} 43.
f6+ {[%clk 0:00:27.7]} 43... gxf6 {[%clk 0:00:06.5]} 44. exf6+ {[%clk
0:00:27.2]} 44... Kxf6 {[%clk 0:00:06.9]} 45. Rf2+ {[%clk 0:00:26.8]} 45... Ke7
{[%clk 0:00:06.5]} 46. Rf7+ {[%clk 0:00:26.2]} 46... Ke8 {[%clk 0:00:07.1]} 47.
Rb7 {[%clk 0:00:23.1]} 47... b4 {[%clk 0:00:06.8]} 48. cxb4 {[%clk 0:00:22.8]}
48... axb4 {[%clk 0:00:06.9]} 49. Kd6 {[%clk 0:00:22.8]} 49... Rd4+ {[%clk
0:00:06.6]} 50. Ke5 {[%clk 0:00:22.5]} 50... Rd2 {[%clk 0:00:06.4]} 51. Rxb4
{[%clk 0:00:21.4]} 51... Rxa2 {[%clk 0:00:06.1]} 52. Rh4 {[%clk 0:00:20.8]}
52... Re2+ {[%clk 0:00:05.1]} 53. Kf6 {[%clk 0:00:20.1]} 53... Rf2+ {[%clk
0:00:05.3]} 54. Kg6 {[%clk 0:00:19.1]} 54... Rg2+ {[%clk 0:00:05.6]} 55. Kxh6
{[%clk 0:00:18.7]} 55... Ke7 {[%clk 0:00:05.9]} 56. Re4 {[%clk 0:00:18.3]} 56...
Rg1 {[%clk 0:00:04.5]} 57. Kh5 {[%clk 0:00:16.4]} 57... Rg2 {[%clk 0:00:04.7]}
58. Kh4 {[%clk 0:00:16.3]} 58... Rg1 {[%clk 0:00:05.3]} 59. Kh3 {[%clk
0:00:16.2]} 59... Rg8 {[%clk 0:00:05.7]} 60. Kh4 {[%clk 0:00:12.6]} 60... Rg7
{[%clk 0:00:05.2]} 1/2-1/2

[Event "*** Titled Tuesday Blitz"]
[Site "Chess.com"]
[Date "2020.12.01"]
[Round "6"]
[White "dpopadic"]
[Black "NMZanette"]
[Result "1-0"]
[WhiteElo "2402"]
[BlackElo "2252"]
[TimeControl "180+1"]
[EndTime "11:06:04 PST"]
[Termination "dpopadic won on time"]

1. e4 {[%clk 0:03:00.9]} 1... e5 {[%clk 0:02:59.5]} 2. Nf3 {[%clk 0:03:00]} 2...
Nc6 {[%clk 0:02:59.6]} 3. Bb5 {[%clk 0:02:59.6]} 3... a6 {[%clk 0:02:58.7]} 4.
Ba4 {[%clk 0:02:59.7]} 4... Nf6 {[%clk 0:02:57.4]} 5. O-O {[%clk 0:02:59.5]}
5... Nxe4 {[%clk 0:02:57.3]} 6. d4 {[%clk 0:02:58.4]} 6... b5 {[%clk 0:02:56.7]}
7. Bb3 {[%clk 0:02:58.4]} 7... d5 {[%clk 0:02:56.3]} 8. dxe5 {[%clk 0:02:58.2]}
8... Be6 {[%clk 0:02:56.5]} 9. Nbd2 {[%clk 0:02:58]} 9... Nc5 {[%clk 0:02:48.5]}
10. c3 {[%clk 0:02:57.8]} 10... Bg4 {[%clk 0:02:44.9]} 11. Re1 {[%clk
0:02:55.2]} 11... Nd3 {[%clk 0:02:42.8]} 12. Re3 {[%clk 0:02:48.9]} 12... Nxc1
{[%clk 0:02:42.8]} 13. Rxc1 {[%clk 0:02:47.9]} 13... Bc5 {[%clk 0:02:43.3]} 14.
Re1 {[%clk 0:02:45.5]} 14... O-O {[%clk 0:02:42.3]} 15. Nf1 {[%clk 0:02:35.5]}
15... Ne7 {[%clk 0:02:30.8]} 16. h3 {[%clk 0:02:33.8]} 16... Be6 {[%clk
0:02:13.7]} 17. Ne3 {[%clk 0:02:32.7]} 17... Bxe3 {[%clk 0:02:09.2]} 18. Rxe3
{[%clk 0:02:32.1]} 18... h6 {[%clk 0:02:03.4]} 19. Bc2 {[%clk 0:02:21.8]} 19...
c5 {[%clk 0:01:57.9]} 20. Qd2 {[%clk 0:02:15.2]} 20... Qd7 {[%clk 0:01:50.6]}
21. Rd1 {[%clk 0:02:14.4]} 21... Rfd8 {[%clk 0:01:48.7]} 22. Ree1 {[%clk
0:02:11.6]} 22... Rac8 {[%clk 0:01:42]} 23. Bb1 {[%clk 0:02:09.2]} 23... Bf5
{[%clk 0:01:27.8]} 24. Bxf5 {[%clk 0:02:02]} 24... Qxf5 {[%clk 0:01:27.7]} 25.
Qe3 {[%clk 0:01:55.6]} 25... Ng6 {[%clk 0:01:21.2]} 26. Rd2 {[%clk 0:01:49.7]}
26... Qf4 {[%clk 0:01:11]} 27. g3 {[%clk 0:01:30.6]} 27... Qxe3 {[%clk
0:01:02.7]} 28. Rxe3 {[%clk 0:01:30.1]} 28... Rc7 {[%clk 0:00:43.2]} 29. Red3
{[%clk 0:01:29.3]} 29... Rcd7 {[%clk 0:00:42]} 30. h4 {[%clk 0:01:28.4]} 30...
Kf8 {[%clk 0:00:41.3]} 31. h5 {[%clk 0:01:27.8]} 31... Ne7 {[%clk 0:00:41.5]}
32. Nh4 {[%clk 0:01:27]} 32... g5 {[%clk 0:00:39.9]} 33. hxg6 {[%clk 0:01:24.2]}
33... fxg6 {[%clk 0:00:40.3]} 34. Rf3+ {[%clk 0:01:22]} 34... Kg7 {[%clk
0:00:40.6]} 35. Rf6 {[%clk 0:01:19.7]} 35... g5 {[%clk 0:00:38.3]} 36. Nf3
{[%clk 0:01:14.1]} 36... Rf8 {[%clk 0:00:37.2]} 37. Rxf8 {[%clk 0:01:06.8]}
37... Kxf8 {[%clk 0:00:38.1]} 38. Nh2 {[%clk 0:01:00.1]} 38... Kf7 {[%clk
0:00:35.5]} 39. Kg2 {[%clk 0:01:00.3]} 39... Ke6 {[%clk 0:00:35.3]} 40. f4
{[%clk 0:01:00.4]} 40... gxf4 {[%clk 0:00:34.3]} 41. gxf4 {[%clk 0:01:00.1]}
41... Nf5 {[%clk 0:00:33.7]} 42. Ng4 {[%clk 0:00:53.4]} 42... Rg7 {[%clk
0:00:33.3]} 43. Kf3 {[%clk 0:00:50.3]} 43... h5 {[%clk 0:00:32.3]} 44. Nf6
{[%clk 0:00:49.7]} 44... Rg3+ {[%clk 0:00:31.8]} 45. Kf2 {[%clk 0:00:49.4]}
45... d4 {[%clk 0:00:23.2]} 46. cxd4 {[%clk 0:00:48.7]} 46... cxd4 {[%clk
0:00:23.2]} 47. Rxd4 {[%clk 0:00:38.4]} 47... Rh3 {[%clk 0:00:14.5]} 48. Rd2
{[%clk 0:00:35.5]} 48... h4 {[%clk 0:00:11.8]} 49. Ne4 {[%clk 0:00:29.7]} 49...
Rh2+ {[%clk 0:00:10.8]} 50. Kf3 {[%clk 0:00:28.3]} 50... Rxd2 {[%clk 0:00:08.8]}
51. Nxd2 {[%clk 0:00:27.6]} 51... Nd4+ {[%clk 0:00:08.6]} 52. Kg4 {[%clk
0:00:26.9]} 52... Nf5 {[%clk 0:00:05]} 53. Nf3 {[%clk 0:00:26.7]} 53... Ne3+
{[%clk 0:00:02.5]} 54. Kxh4 {[%clk 0:00:26.1]} 54... Kf5 {[%clk 0:00:03.2]} 55.
Kg3 {[%clk 0:00:24.5]} 55... Nf1+ {[%clk 0:00:03.4]} 56. Kf2 {[%clk 0:00:24.4]}
1-0

[Event "*** Titled Tuesday Blitz"]
[Site "Chess.com"]
[Date "2020.12.01"]
[Round "6"]
[White "KetiTsatsalashvili"]
[Black "Vandros57"]
[Result "0-1"]
[WhiteElo "2322"]
[BlackElo "2168"]
[TimeControl "180+1"]
[EndTime "11:06:05 PST"]
[Termination "Vandros57 won by checkmate"]

1. d4 {[%clk 0:03:00.9]} 1... d5 {[%clk 0:02:57.1]} 2. Nf3 {[%clk 0:03:01]} 2...
Nf6 {[%clk 0:02:55.8]} 3. g3 {[%clk 0:02:59.4]} 3... Bg4 {[%clk 0:02:52.6]} 4.
Bg2 {[%clk 0:02:58.3]} 4... Bxf3 {[%clk 0:02:52.1]} 5. Bxf3 {[%clk 0:02:58.3]}
5... e6 {[%clk 0:02:51.4]} 6. O-O {[%clk 0:02:58.2]} 6... Be7 {[%clk 0:02:51]}
7. c4 {[%clk 0:02:57.9]} 7... c6 {[%clk 0:02:49.9]} 8. b3 {[%clk 0:02:54.3]}
8... O-O {[%clk 0:02:48.8]} 9. Bb2 {[%clk 0:02:54.1]} 9... Nbd7 {[%clk
0:02:42.7]} 10. Nd2 {[%clk 0:02:53.8]} 10... a5 {[%clk 0:02:39.5]} 11. Qc2
{[%clk 0:02:51.4]} 11... Qb6 {[%clk 0:02:37.8]} 12. h4 {[%clk 0:02:45.8]} 12...
h6 {[%clk 0:02:36.4]} 13. Bg2 {[%clk 0:02:43.5]} 13... Rac8 {[%clk 0:02:34.6]}
14. c5 {[%clk 0:02:32.9]} 14... Qa6 {[%clk 0:02:32.2]} 15. Rfe1 {[%clk 0:02:28]}
15... b6 {[%clk 0:02:28.9]} 16. cxb6 {[%clk 0:02:26.7]} 16... Qxb6 {[%clk
0:02:26.8]} 17. e3 {[%clk 0:02:19.3]} 17... Bb4 {[%clk 0:02:23.5]} 18. Rec1
{[%clk 0:02:11.8]} 18... Bxd2 {[%clk 0:02:17.3]} 19. Qxd2 {[%clk 0:02:11.7]}
19... c5 {[%clk 0:02:15.4]} 20. Ba3 {[%clk 0:01:54.8]} 20... Ne4 {[%clk
0:02:01.8]} 21. Bxe4 {[%clk 0:01:47.2]} 21... dxe4 {[%clk 0:02:01.1]} 22. Qc2
{[%clk 0:01:34.5]} 22... cxd4 {[%clk 0:01:51]} 23. Qxe4 {[%clk 0:01:26.9]} 23...
dxe3 {[%clk 0:01:36.9]} 24. Qxe3 {[%clk 0:01:22.6]} 24... Qxe3 {[%clk
0:01:33.5]} 25. fxe3 {[%clk 0:01:23.5]} 25... Rxc1+ {[%clk 0:01:18.6]} 26. Rxc1
{[%clk 0:01:22.9]} 26... Ra8 {[%clk 0:01:14.3]} 27. Rc7 {[%clk 0:01:21]} 27...
Nf6 {[%clk 0:01:13.2]} 28. Bc5 {[%clk 0:01:16.9]} 28... Nd5 {[%clk 0:01:11.6]}
29. Rb7 {[%clk 0:01:08.8]} 29... h5 {[%clk 0:00:59.4]} 30. Kf2 {[%clk
0:00:55.2]} 30... Rc8 {[%clk 0:00:57.6]} 31. Bd4 {[%clk 0:00:45]} 31... Rc2+
{[%clk 0:00:55.8]} 32. Kf3 {[%clk 0:00:45.2]} 32... Rxa2 {[%clk 0:00:55]} 33.
Ra7 {[%clk 0:00:41.5]} 33... Ra3 {[%clk 0:00:52.8]} 34. Ke4 {[%clk 0:00:33]}
34... f6 {[%clk 0:00:49.9]} 35. Ra8+ {[%clk 0:00:22.7]} 35... Kf7 {[%clk
0:00:48.3]} 36. Ra7+ {[%clk 0:00:22.1]} 36... Kg6 {[%clk 0:00:47.7]} 37. Bc5
{[%clk 0:00:18.7]} 37... Rxb3 {[%clk 0:00:46]} 38. Rxa5 {[%clk 0:00:18.1]} 38...
Nc3+ {[%clk 0:00:44.8]} 39. Kf3 {[%clk 0:00:17.9]} 39... Rb1 {[%clk 0:00:42.7]}
40. Ra7 {[%clk 0:00:16.2]} 40... Rf1+ {[%clk 0:00:41.2]} 41. Kg2 {[%clk
0:00:16.6]} 41... Rf5 {[%clk 0:00:40.2]} 42. Bf8 {[%clk 0:00:16.1]} 42... Kh7
{[%clk 0:00:30.4]} 43. Rxg7+ {[%clk 0:00:15.8]} 43... Kh8 {[%clk 0:00:30.1]} 44.
Rc7 {[%clk 0:00:14.4]} 44... Ne4 {[%clk 0:00:28.2]} 45. Rc8 {[%clk 0:00:12.8]}
45... Kh7 {[%clk 0:00:26.9]} 46. Rc7+ {[%clk 0:00:12.9]} 46... Kg8 {[%clk
0:00:24.2]} 47. Ba3 {[%clk 0:00:12.3]} 47... Rf2+ {[%clk 0:00:22.5]} 48. Kg1
{[%clk 0:00:12.6]} 48... Ra2 {[%clk 0:00:20.9]} 49. Bc5 {[%clk 0:00:11.1]} 49...
Nxg3 {[%clk 0:00:17.6]} 50. Bd6 {[%clk 0:00:08.7]} 50... Nf5 {[%clk 0:00:15.7]}
51. Bf4 {[%clk 0:00:08.6]} 51... Nxh4 {[%clk 0:00:14]} 52. Rc8+ {[%clk
0:00:07.4]} 52... Kf7 {[%clk 0:00:13.3]} 53. Rc7+ {[%clk 0:00:07.7]} 53... Kg6
{[%clk 0:00:13.2]} 54. Rc6 {[%clk 0:00:08]} 54... Kf5 {[%clk 0:00:13]} 55. Rc5+
{[%clk 0:00:07.7]} 55... e5 {[%clk 0:00:13]} 56. Bh6 {[%clk 0:00:07.9]} 56...
Nf3+ {[%clk 0:00:12.6]} 57. Kf1 {[%clk 0:00:08]} 57... Kg4 {[%clk 0:00:12.3]}
58. Bg7 {[%clk 0:00:07.6]} 58... Kg3 {[%clk 0:00:11.8]} 59. Bxf6 {[%clk
0:00:05.6]} 59... Rf2# {[%clk 0:00:11.2]} 0-1